fUSD/lending_fUSD_20250124
["ID","MTS","AMOUNT","RATE_DAILY","PERIOD"]
[350235601,1737724242384,-869.32,0.00018606,2]
[350235602,1737724242394,-500.0,0.00018606,2]
[350235603,1737724242404,-605.25,0.00018606,2]
[350235604,1737724242415,-500.0,0.00018606,2]
[350235605,1737724242424,-810.3,0.00018606,2]
[350235606,1737724242434,-500.0,0.00018606,2]
[350235607,1737724242444,-558.93,0.00018606,2]
[350235608,1737724242453,-506.19,0.00018606,2]
[350235609,1737724242463,-500.0,0.00018606,2]
[350235610,1737724242472,-500.0,0.00018606,2]
[350235611,1737724242483,-500.0,0.00018606,2]
[350235612,1737724242494,-500.0,0.00018606,2]
[350235613,1737724242504,-500.0,0.00018606,2]
[350235614,1737724242514,-500.0,0.00018606,2]
[350235615,1737724242523,-500.0,0.00018606,2]
[350235616,1737724242532,-500.0,0.00018606,2]
[350235617,1737724242542,-500.0,0.00018606,2]
[350235618,1737724242551,-514.46,0.00018606,2]
[350235619,1737724242561,-500.0,0.00018606,2]
[350235620,1737724242570,-914.55,0.00018606,2]
[350235621,1737724242580,-500.0,0.00018606,2]
[350235622,1737724242589,-511.68,0.00018606,2]
[350235623,1737724242601,-677.09,0.00018606,2]
[350235624,1737724242614,-500.0,0.00018606,2]
[350235625,1737724242623,-500.0,0.00018606,2]
[350235626,1737724242632,-500.0,0.00018606,2]
[350235627,1737724242642,-868.33,0.00018606,2]
[350235628,1737724242652,-1017.6,0.00018606,2]
[350235629,1737724242662,-788.07,0.00018606,2]
[350235630,1737724242671,-500.0,0.00018606,2]
[350235631,1737724242684,-500.0,0.00018606,2]
[350235632,1737724242694,-500.0,0.00018606,2]
[350235633,1737724242703,-517.25858876,0.00018606,2]
[350235634,1737724242713,-500.0,0.00018606,2]
[350235635,1737724242722,-500.0,0.00018606,2]
[350235636,1737724242732,-500.0,0.00018606,2]
[350235637,1737724242741,-867.71,0.00018606,2]
[350235638,1737724242751,-500.0,0.00018606,2]
[350235639,1737724242760,-567.52,0.00018606,2]
[350235640,1737724242769,-1118.61,0.00018606,2]
[350235641,1737724242779,-1013.0,0.00018606,2]
[350235642,1737724242789,-500.0,0.00018606,2]
[350235643,1737724242799,-500.0,0.00018606,2]
[350235644,1737724242809,-500.0,0.00018606,2]
[350235645,1737724242818,-503.74,0.00018606,2]
[350235646,1737724242828,-2234.30100526,0.00018606,2]
[350235647,1737724242841,-268.39899474,0.00018606,2]
[350235648,1737724242850,-500.0,0.00018606,2]
[350235649,1737724242859,-259.03850788,0.00018606,2]
[350235650,1737724242870,-889.57149212,0.00018606,2]
[350235651,1737724242879,-474.11685717,0.00018606,2]
[350235652,1737724242892,-25.88314283,0.00018606,2]
[350235653,1737724242901,-500.0,0.00018606,2]
[350235654,1737724242911,-691.02127377,0.00018606,2]
[350235655,1737724242922,-265.40138047,0.00018606,2]
[350235656,1737724242934,-2282.75105925,0.00018606,2]
[350235657,1737724242945,-404.27628651,0.00018606,2]
[350235658,1737724242954,-255.03371349,0.00018606,2]
[350235659,1737724242970,-2376.60628651,0.00018606,2]
[350235661,1737724242979,-1352.50382,0.00018606,2]
[350235662,1737724242988,-798.42,0.00018606,2]
[350235663,1737724242997,-699.81,0.00018606,2]
[350235664,1737724243006,-117.65989349,0.00018606,2]
[350235665,1737724243017,-787.65010651,0.00018606,2]
[350235666,1737724243026,-295.44989349,0.00018606,2]
[350235668,1737724243042,-204.55010651,0.00018606,2]
[350235670,1737724243051,-500.0,0.00018606,2]
[350235671,1737724243060,-1222.03,0.00018606,2]
[350235672,1737724243068,-337.3237957,0.00018606,2]
[350235673,1737724243081,-162.6762043,0.00018606,2]
[350235674,1737724243090,-964.461239,0.00018606,2]
[350235675,1737724243100,-500.0,0.00018606,2]
[350235676,1737724243112,-1092.94395673,0.00018606,2]
[350235677,1737724243139,-659.37604327,0.00018606,2]
[350235678,1737724243149,-1455.82395673,0.00018606,2]
[350235679,1737724243160,-165.09604327,0.00018606,2]
[350235680,1737724243168,-472.85294423,0.00018606,2]
[350235687,1737724243550,-817.57,0.00018469,2]
[350235688,1737724243560,-27.14705577,0.00018606,2]
[350235689,1737724243570,-219.78913573,0.00018606,2]
[350235690,1737724243581,-280.21086427,0.00018606,2]
[350235691,1737724243590,-635.84,0.00018606,2]
[350235692,1737724243600,-2807.66,0.00018606,2]
[350235693,1737724243611,-500.0,0.00018606,2]
[350235694,1737724243620,-500.0,0.00018606,2]
[350235695,1737724243630,-649.99,0.00018606,2]
[350235696,1737724243643,-500.0,0.00018606,2]
[350235697,1737724243652,-918.7,0.00018606,2]
[350235703,1737724243661,-1017.36,0.00018606,2]
[350235704,1737724243808,-1363.0,0.00018606,2]
[350235705,1737724243818,-500.0,0.00018606,2]
[350235706,1737724243827,-1266.04,0.00018606,2]
[350235707,1737724243837,-656.62,0.00018606,2]
[350235708,1737724243846,-820.22,0.00018606,2]
[350235709,1737724243856,-1172.17,0.00018606,2]
[350235710,1737724243865,-500.0,0.00018606,2]
[350235711,1737724243875,-894.99,0.00018606,2]
[350235712,1737724243884,-2109.54,0.00018606,2]
[350235713,1737724243894,-4837.12,0.00018606,2]
[350235714,1737724243903,-1231.01,0.00018606,2]
[350235715,1737724243913,-557.29,0.00018606,2]
[350235716,1737724243923,-1966.41,0.00018606,2]
[350235717,1737724243932,-2941.04,0.00018606,2]
[350235718,1737724243942,-3516.03,0.00018606,2]
[350235719,1737724243951,-550.0,0.00018606,2]
[350235720,1737724243961,-500.0,0.00018606,2]
[350235721,1737724243970,-1570.06,0.00018606,2]
[350235722,1737724243980,-500.0,0.00018606,2]
[350235723,1737724243989,-1479.93,0.00018606,2]
[350235724,1737724243998,-12259.79,0.00018606,2]
[350235725,1737724244007,-4583.97913573,0.00018606,2]
[350235726,1737724244765,-126.17086427,0.00018606,2]
[350235727,1737724244775,-500.0,0.00018606,2]
[350235728,1737724244785,-607.61,0.00018606,2]
[350235729,1737724244796,-500.0,0.00018606,2]
[350235730,1737724244805,-1076.64,0.00018606,2]
[350235731,1737724244815,-2814.75,0.00018606,2]
[350235732,1737724244824,-500.0,0.00018606,2]
[350235733,1737724244834,-500.0,0.00018606,2]
[350235734,1737724244844,-766.68,0.00018608,2]
[350235735,1737724244853,-500.0,0.00018608,2]
[350235736,1737724244862,-500.0,0.00018608,2]
[350235737,1737724244871,-500.0,0.00018608,2]
[350235738,1737724244881,-671.55,0.00018608,2]
[350235739,1737724244892,-500.0,0.00018608,2]
[350235740,1737724244902,-500.0,0.00018608,2]
[350235741,1737724244912,-500.0,0.00018608,2]
[350235742,1737724244922,-500.0,0.00018608,2]
[350235743,1737724244932,-500.0,0.00018608,2]
[350235744,1737724244942,-151.40246118,0.00018624,2]
[350235745,1737724244952,-150.0,0.0001864,2]
[350235746,1737724244962,-2742.695,0.0001864,2]
[350235747,1737724244972,-173.64283168,0.00018643,2]
[350235748,1737724244981,-150.0,0.00018644,2]
[350235749,1737724244990,-1000.0,0.00018646,2]
[350235750,1737724245000,-150.0,0.00018647,2]
[350235751,1737724245010,-150.0,0.0001865,2]
[350235752,1737724245019,-150.0,0.0001865,2]
[350235753,1737724245028,-264.90826616,0.00018661,2]
[350235754,1737724245037,-70286.96787461,0.0001867,2]
[350235775,1737724246181,-248.7,0.00018012,2]
[350235776,1737724246191,-515.75182609,0.00018489,2]
[350235777,1737724246200,-69.70188831,0.00018606,2]
[350235778,1737724246238,-747.86811169,0.00018606,2]
[350235779,1737724246247,-1124.77801701,0.0001867,2]
[350235780,1737724246295,-3081.63968159,0.0001867,2]
[350235781,1737724246356,-3182.0,0.0001867,2]
[350235784,1737724247983,-69324.61442679,0.0001867,2]
[350235785,1737724247992,-150.0,0.00018671,2]
[350235786,1737724248001,-249.87366591,0.0001868,2]
[350235787,1737724248010,-150.0,0.00018684,2]
[350235788,1737724248020,-150.0,0.00018687,2]
[350235789,1737724248029,-851.94443077,0.00018694,2]
[350235790,1737724248038,-150.0,0.00018695,2]
[350235791,1737724248048,-1000.0,0.00018698,2]
[350235792,1737724248057,-1600.0,0.000187,6]
[350235793,1737724248066,-150.0,0.00018709,2]
[350235794,1737724248075,-150.0,0.00018709,2]
[350235795,1737724248084,-150.217,0.00018709,2]
[350235796,1737724248094,-1270.0,0.00018709,2]
[350235797,1737724248103,-231.777,0.00018709,2]
[350235798,1737724248113,-567.0,0.00018709,2]
[350235799,1737724248123,-634.0,0.00018709,2]
[350235800,1737724248132,-1864.0,0.00018709,2]
[350235801,1737724248143,-859.0,0.00018709,2]
[350235802,1737724248152,-2947.0,0.00018709,2]
[350235803,1737724248161,-908.0,0.00018709,2]
[350235804,1737724248171,-1261.0,0.00018709,2]
[350235805,1737724248180,-538.0,0.00018709,2]
[350235806,1737724248189,-3986.0,0.00018709,2]
[350235807,1737724248199,-150.0,0.00018709,2]
[350235808,1737724248208,-1000.0,0.00018722,2]
[350235809,1737724248217,-150.0,0.0001873,2]
[350235810,1737724248228,-150.0,0.00018739,2]
[350235811,1737724248237,-1045.54,0.00018741,2]
[350235812,1737724248246,-638.3,0.00018741,2]
[350235813,1737724248255,-530.71,0.00018741,2]
[350235814,1737724248265,-1282.04,0.00018741,2]
[350235815,1737724248274,-1264.47,0.00018741,2]
[350235816,1737724248283,-773.48,0.00018741,2]
[350235817,1737724248292,-1470.04,0.00018741,2]
[350235818,1737724248302,-2610.81,0.00018741,2]
[350235819,1737724248312,-1757.37,0.00018741,2]
[350235820,1737724248321,-1075.22,0.00018741,2]
[350235821,1737724248331,-3847.08,0.00018741,2]
[350235822,1737724248340,-500.0,0.00018741,2]
[350235823,1737724248350,-812.79,0.00018741,2]
[350235824,1737724248359,-1071.95,0.00018741,2]
[350235825,1737724248368,-642.24,0.00018741,2]
[350235826,1737724248377,-605.53,0.00018741,2]
[350235827,1737724248387,-500.0,0.00018741,2]
[350235828,1737724248397,-716.33,0.00018741,2]
[350235829,1737724248406,-576.23,0.00018742,2]
[350235830,1737724248416,-542.75,0.00018742,2]
[350235831,1737724248425,-589.29,0.00018742,2]
[350235832,1737724248434,-500.0,0.00018742,2]
[350235833,1737724248443,-500.0,0.00018742,2]
[350235834,1737724248453,-500.0,0.00018742,2]
[350235835,1737724248462,-500.0,0.00018742,2]
[350235836,1737724248471,-500.0,0.00018742,2]
[350235837,1737724248480,-715.83,0.00018742,2]
[350235838,1737724248489,-500.0,0.00018742,2]
[350235839,1737724248499,-824.97,0.00018742,2]
[350235840,1737724248508,-913.61,0.00018742,2]
[350235841,1737724248518,-500.0,0.00018742,2]
[350235842,1737724248528,-500.0,0.00018742,2]
[350235843,1737724248537,-500.0,0.00018742,2]
[350235844,1737724248547,-556.12,0.00018742,2]
[350235845,1737724248556,-500.0,0.00018742,2]
[350235846,1737724248565,-500.0,0.00018742,2]
[350235847,1737724248575,-500.0,0.00018742,2]
[350235848,1737724248584,-682.43,0.00018742,2]
[350235849,1737724248593,-500.0,0.00018742,2]
[350235850,1737724248604,-500.0,0.00018742,2]
[350235851,1737724248615,-636.3,0.00018742,2]
[350235852,1737724248625,-978.76,0.00018742,2]
[350235853,1737724248635,-500.0,0.00018742,2]
[350235854,1737724248644,-954.85,0.00018742,2]
[350235855,1737724248654,-500.0,0.00018742,2]
[350235856,1737724248664,-500.0,0.00018742,2]
[350235857,1737724248674,-1144.41,0.00018742,2]
[350235858,1737724248685,-500.0,0.00018742,2]
[350235859,1737724248694,-522.22,0.00018742,2]
[350235860,1737724248703,-804.95,0.00018742,2]
[350235861,1737724248713,-500.0,0.00018742,2]
[350235862,1737724248722,-500.0,0.00018742,2]
[350235863,1737724248732,-500.0,0.00018742,2]
[350235864,1737724248741,-500.0,0.00018742,2]
[350235865,1737724248751,-500.0,0.00018742,2]
[350235866,1737724248762,-1328.05,0.00018742,2]
[350235867,1737724248772,-500.0,0.00018742,2]
[350235868,1737724248782,-500.0,0.00018742,2]
[350235869,1737724248791,-736.25,0.00018742,2]
[350235870,1737724248801,-500.0,0.00018742,2]
[350235871,1737724248812,-500.0,0.00018742,2]
[350235872,1737724248822,-754.47,0.00018742,2]
[350235873,1737724248831,-500.0,0.00018742,2]
[350235874,1737724248840,-872.06,0.00018742,2]
[350235875,1737724248850,-926.06,0.00018742,2]
[350235876,1737724248859,-552.25,0.00018742,2]
[350235877,1737724248868,-500.0,0.00018742,2]
[350235878,1737724248877,-699.92,0.00018742,2]
[350235879,1737724248886,-746.48,0.00018742,2]
[350235880,1737724248896,-788.55,0.00018742,2]
[350235881,1737724248906,-500.0,0.00018742,2]
[350235882,1737724248915,-500.0,0.00018742,2]
[350235883,1737724248925,-500.0,0.00018742,2]
[350235884,1737724248935,-500.0,0.00018742,2]
[350235885,1737724248944,-500.0,0.00018742,2]
[350235886,1737724248953,-1465.85,0.00018742,2]
[350235887,1737724248963,-500.0,0.00018742,2]
[350235888,1737724248972,-542.93,0.00018742,2]
[350235889,1737724248982,-653.76,0.00018742,2]
[350235890,1737724248991,-1813.61,0.00018742,2]
[350235891,1737724249001,-500.0,0.00018742,2]
[350235892,1737724249010,-500.0,0.00018742,2]
[350235893,1737724249020,-2798.39,0.00018742,2]
[350235894,1737724249030,-949.1,0.00018742,2]
[350235895,1737724249039,-595.54,0.00018742,2]
[350235896,1737724249049,-1508.49,0.00018742,2]
[350235897,1737724249059,-1358.67,0.00018742,2]
[350235898,1737724249069,-500.0,0.00018742,2]
[350235899,1737724249079,-4623.34,0.00018742,2]
[350235900,1737724249088,-734.7,0.00018742,2]
[350235901,1737724249097,-2208.92,0.00018742,2]
[350235902,1737724249107,-756.96,0.00018742,2]
[350235903,1737724249116,-500.0,0.00018742,2]
[350235904,1737724249126,-8204.62,0.00018742,2]
[350235905,1737724249136,-605.48,0.00018742,2]
[350235906,1737724249145,-838.33,0.00018742,2]
[350235907,1737724249154,-671.03,0.00018742,2]
[350235908,1737724249164,-970.32,0.00018742,2]
[350235909,1737724249173,-659.3,0.00018742,2]
[350235910,1737724249183,-5418.82,0.00018742,2]
[350235911,1737724249192,-500.0,0.00018742,2]
[350235912,1737724249202,-520.01,0.00018742,2]
[350235913,1737724249212,-2913.02,0.00018742,2]
[350235914,1737724249221,-603.25,0.00018742,2]
[350235915,1737724249231,-500.0,0.00018742,2]
[350235916,1737724249240,-500.0,0.00018742,2]
[350235917,1737724249249,-500.0,0.00018742,2]
[350235918,1737724249259,-609.41,0.00018742,2]
[350235919,1737724249268,-500.0,0.00018742,2]
[350235920,1737724249278,-3169.96,0.00018742,2]
[350235921,1737724249288,-500.0,0.00018742,2]
[350235922,1737724249297,-500.0,0.00018742,2]
[350235923,1737724249307,-1683.15,0.00018742,2]
[350235924,1737724249317,-939.43,0.00018742,2]
[350235925,1737724249327,-1479.81,0.00018742,2]
[350235926,1737724249336,-1459.68,0.00018742,2]
[350235927,1737724249346,-500.0,0.00018742,2]
[350235928,1737724249355,-1232.67,0.00018742,2]
[350235929,1737724249365,-1916.73,0.00018742,2]
[350235930,1737724249375,-500.0,0.00018742,2]
[350235931,1737724249385,-1037.42,0.00018742,2]
[350235932,1737724249395,-500.0,0.00018742,2]
[350235933,1737724249407,-500.0,0.00018742,2]
[350235934,1737724249417,-751.43388777,0.00018742,2]
[350235935,1737724249430,-648.81611223,0.00018742,2]
[350235936,1737724249439,-837.81,0.00018742,2]
[350235937,1737724249448,-500.0,0.00018742,2]
[350235938,1737724249570,-2550.31,0.00018742,2]
[350235939,1737724249580,-251.20845277,0.00018742,2]
[350235940,1737724249592,-248.79154723,0.00018742,2]
[350235941,1737724249602,-186.35845277,0.00018742,2]
[350235942,1737724249623,-313.64154723,0.00018742,2]
[350235943,1737724249632,-645.61066304,0.00018742,2]
[350235948,1737725198333,150.0,0.00012001,2]
[350235949,1737725238149,-161.28,0.00012329,2]
[350235950,1737725238171,-178.0,0.00013,5]
[350235951,1737725238192,-169.75,0.00014085,2]
[350235952,1737725238213,-204.43,0.00015602,2]
[350235953,1737725238234,-766.89657,0.00017446,2]
[350235954,1737725238259,-250.0,0.00017534,2]
[350235955,1737725238281,-250.0,0.00017546,2]
[350235956,1737725238304,-1000.0,0.00017593,2]
[350235957,1737725238326,-175.42,0.00017671,2]
[350235958,1737725238350,-220.91,0.00017685,2]
[350235959,1737725238372,-204.43,0.00017866,2]
[350235960,1737725238393,-422.62,0.00018,3]
[350235961,1737725238414,-500.0,0.00018,2]
[350235962,1737725238436,-500.0,0.00018,2]
[350235963,1737725238457,-500.0,0.00018,2]
[350235964,1737725238478,-500.0,0.00018,2]
[350235965,1737725238500,-500.0,0.00018068,2]
[350235966,1737725238522,-800.0,0.00018068,2]
[350235967,1737725238544,-173.4,0.00018082,2]
[350235968,1737725238566,-33391.70442965,0.00018189,2]
[350235969,1737725238596,-5273.92669053,0.00018323,2]
[350235970,1737725238619,-368.75231231,0.00018324,2]
[350235971,1737725238642,-270.69487511,0.00018343,2]
[350235972,1737725238664,-270.69487511,0.00018345,2]
[350235973,1737725238686,-200.0,0.00018346,2]
[350235974,1737725238709,-708.05043511,0.00018356,2]
[350235975,1737725238731,-430.68,0.00018367,2]
[350235976,1737725238753,-1140.73168439,0.00018367,2]
[350235977,1737725238774,-1007.51428745,0.00018367,2]
[350235978,1737725238797,-1004.88035133,0.00018367,2]
[350235979,1737725238820,-556.16730563,0.0001837,2]
[350235994,1737725432401,-195.96,0.00017614,2]
[350235995,1737725432412,-252.36,0.00018002,2]
[350235996,1737725432423,-251.22,0.00018002,2]
[350235997,1737725432433,-250.1,0.00018002,2]
[350235998,1737725432443,-251.86,0.00018002,2]
[350235999,1737725432452,-56.63999523,0.00018002,2]
[350236000,1737725432464,-198.15000477,0.00018002,2]
[350236001,1737725432473,-248.04,0.00018002,2]
[350236002,1737725432483,-248.36,0.00018002,2]
[350236003,1737725432493,-1113.98386436,0.00018003,2]
[350236004,1737725432502,-1047.30631716,0.00018003,2]
[350236005,1737725432512,-700.0,0.00018068,2]
[350236006,1737725432522,-500.0,0.00018068,2]
[350236007,1737725432533,-151.88312948,0.0001837,2]
[350236008,1737725432542,-756.88000558,0.00018384,2]
[350236009,1737725432552,-797.60375873,0.00018384,2]
[350236010,1737725432562,-5273.92669053,0.00018384,2]
[350236011,1737725432573,-200.0,0.00018387,2]
[350236012,1737725432585,-514.829922,0.00018387,2]
[350236013,1737725432596,-368.75231231,0.00018396,2]
[350236014,1737725432606,-368.75231231,0.00018401,2]
[350236015,1737725432616,-270.69487511,0.0001841,2]
[350236016,1737725432628,-368.75231231,0.00018414,2]
[350236017,1737725432638,-708.05043511,0.00018414,2]
[350236018,1737725432648,-514.829922,0.00018415,2]
[350236019,1737725432658,-270.69487511,0.00018419,2]
[350236020,1737725432667,-200.0,0.00018431,2]
[350236021,1737725432677,-200.0,0.00018431,2]
[350236022,1737725432686,-708.05043511,0.00018435,2]
[350236023,1737725432696,-5273.92669053,0.00018436,2]
[350236024,1737725432706,-514.829922,0.00018439,2]
[350236025,1737725432715,-514.829922,0.00018441,2]
[350236026,1737725432725,-200.0,0.00018448,2]
[350236027,1737725432734,-708.05043511,0.00018453,2]
[350236028,1737725432743,-514.829922,0.00018456,2]
[350236029,1737725432752,-5273.92669053,0.0001846,2]
[350236030,1737725432762,-368.75231231,0.00018462,2]
[350236031,1737725432771,-249.12,0.00018468,2]
[350236032,1737725432780,-500.0,0.00018468,2]
[350236033,1737725432790,-500.0,0.00018468,2]
[350236034,1737725432799,-500.0,0.00018468,2]
[350236035,1737725432808,-500.0,0.00018468,2]
[350236036,1737725432819,-500.0,0.00018468,2]
[350236037,1737725432828,-1028.58,0.00018468,2]
[350236038,1737725432837,-500.0,0.00018468,2]
[350236039,1737725432847,-950.49,0.00018468,2]
[350236040,1737725432856,-702.79,0.00018468,2]
[350236041,1737725432865,-500.0,0.00018468,2]
[350236042,1737725432874,-500.0,0.00018468,2]
[350236043,1737725432883,-500.0,0.00018468,2]
[350236044,1737725432893,-657.26,0.00018468,2]
[350236045,1737725432902,-500.0,0.00018468,2]
[350236046,1737725432912,-500.0,0.00018468,2]
[350236047,1737725432922,-500.0,0.00018468,2]
[350236048,1737725432931,-500.0,0.00018468,2]
[350236049,1737725432941,-5273.92669053,0.00018469,2]
[350236050,1737725432951,-270.69487511,0.00018469,2]
[350236051,1737725432961,-500.0,0.00018469,2]
[350236052,1737725432973,-500.0,0.00018469,2]
[350236053,1737725432982,-500.0,0.00018469,2]
[350236054,1737725432991,-500.0,0.00018469,2]
[350236055,1737725433000,-500.0,0.00018469,2]
[350236057,1737725433011,-500.0,0.00018469,2]
[350236060,1737725433020,-248.81624937,0.00018469,2]
[350236062,1737725433029,-500.0,0.00018469,2]
[350236064,1737725433039,-500.0,0.00018469,2]
[350236065,1737725433049,-298.96,0.0001847,2]
[350236066,1737725433058,-686.81,0.00018479,2]
[350236067,1737725433068,-500.0,0.00018479,2]
[350236068,1737725433077,-786.73,0.00018479,2]
[350236069,1737725433086,-630.39,0.00018479,2]
[350236070,1737725433095,-184.44722856,0.00018479,2]
[350236071,1737725433105,-4198.99072677,0.0001848,2]
[350236072,1737725433226,-4554.86404149,0.0001848,2]
[350236075,1737725438339,-2148.72463962,0.0001848,2]
[350236076,1737725438350,-1877.54313522,0.0001848,2]
[350236077,1737725438460,-53695.60548053,0.0001848,2]
[350236078,1737725438634,-859.095,0.0001848,2]
[350236079,1737725438645,-19999.88496,0.0001848,2]
[350236091,1737725440439,-7016.136527,0.0001848,2]
[350236092,1737725440500,-340.655,0.0001848,2]
[350236093,1737725440562,-320.94,0.0001848,2]
[350236094,1737725440573,-2666.81926113,0.0001848,2]
[350236095,1737725440585,-2669.04000002,0.0001848,2]
[350236096,1737725440691,-1657.65390319,0.0001848,2]
[350236097,1737725440702,-2097.86412202,0.0001848,2]
[350236098,1737725440778,-393880.65309581,0.0001848,2]
[350236099,1737725440787,-150.0,0.00018484,2]
[350236100,1737725440797,-756.88000554,0.00018486,2]
[350236101,1737725440806,-797.60375871,0.00018486,2]
[350236102,1737725440815,-19154.18494539,0.000185,3]
[350236103,1737725440824,-161.30882825,0.000185,2]
[350236104,1737725440834,-300.0,0.000185,6]
[350236105,1737725440843,-152.62,0.00018502,2]
[350236106,1737725440853,-151.32,0.00018502,2]
[350236107,1737725440862,-151.64,0.00018502,2]
[350236108,1737725440871,-150.97,0.00018502,2]
[350236109,1737725440880,-161.30882823,0.00018513,2]
[350236110,1737725440890,-756.88000554,0.00018588,2]
[350236111,1737725440899,-797.60375871,0.00018588,2]
[350236112,1737725440908,-564.21,0.00018593,2]
[350236113,1737725440919,-700.0,0.000186,6]
[350236114,1737725440929,-500.0,0.00018603,2]
[350236115,1737725440938,-507.25049264,0.00018603,2]
[350236116,1737725440947,-500.0,0.00018603,2]
[350236117,1737725440957,-766.66,0.00018603,2]
[350236118,1737725440967,-545.87,0.00018603,2]
[350236119,1737725440980,-565.19,0.00018603,2]
[350236121,1737725440989,-500.0,0.00018603,2]
[350236123,1737725440998,-536.47,0.00018603,2]
[350236125,1737725441007,-500.0,0.00018603,2]
[350236127,1737725441017,-500.0,0.00018603,2]
[350236129,1737725441026,-500.0,0.00018603,2]
[350236131,1737725441036,-500.0,0.00018603,2]
[350236132,1737725441046,-647.18,0.00018603,2]
[350236133,1737725441057,-742.68,0.00018603,2]
[350236134,1737725441066,-500.0,0.00018603,2]
[350236135,1737725441075,-820.24,0.00018603,2]
[350236136,1737725441084,-500.0,0.00018603,2]
[350236137,1737725441094,-911.986253,0.00018603,2]
[350236139,1737725441104,-500.0,0.00018603,2]
[350236141,1737725441113,-500.0,0.00018603,2]
[350236143,1737725441122,-1262.356468,0.00018603,2]
[350236145,1737725441131,-500.0,0.00018603,2]
[350236147,1737725441140,-500.0,0.00018603,2]
[350236149,1737725441149,-500.0,0.00018603,2]
[350236151,1737725441159,-880.3,0.00018603,2]
[350236153,1737725441169,-249.8226315,0.00018603,2]
[350236155,1737725441178,-577.6,0.00018603,2]
[350236157,1737725441187,-500.0,0.00018603,2]
[350236159,1737725441197,-857.73,0.00018603,2]
[350236161,1737725441206,-1025.13,0.00018603,2]
[350236163,1737725441215,-500.0,0.00018603,2]
[350236165,1737725441223,-500.0,0.00018603,2]
[350236167,1737725441234,-725.16,0.00018603,2]
[350236169,1737725441243,-500.0,0.00018603,2]
[350236171,1737725441252,-500.0,0.00018603,2]
[350236173,1737725441261,-500.0,0.00018603,2]
[350236175,1737725441271,-500.0,0.00018603,2]
[350236177,1737725441280,-1184.48,0.00018603,2]
[350236179,1737725441289,-665.05,0.00018603,2]
[350236181,1737725441298,-500.0,0.00018603,2]
[350236183,1737725441307,-681.0,0.00018603,2]
[350236185,1737725441316,-500.0,0.00018603,2]
[350236187,1737725441325,-784.13,0.00018603,2]
[350236189,1737725441334,-838.83,0.00018603,2]
[350236191,1737725441344,-500.0,0.00018603,2]
[350236193,1737725441353,-500.0,0.00018603,2]
[350236195,1737725441362,-674.0,0.00018603,2]
[350236197,1737725441371,-633.27,0.00018603,2]
[350236199,1737725441380,-625.3,0.00018603,2]
[350236201,1737725441389,-710.81,0.00018603,2]
[350236202,1737725441398,-500.0,0.00018603,2]
[350236205,1737725441407,-500.0,0.00018603,2]
[350236206,1737725441418,-3412.61,0.00018603,2]
[350236208,1737725441427,-1318.82,0.00018603,2]
[350236211,1737725441436,-500.0,0.00018603,2]
[350236212,1737725441445,-592.87,0.00018603,2]
[350236214,1737725441454,-850.7,0.00018603,2]
[350236216,1737725441463,-500.0,0.00018603,2]
[350236218,1737725441472,-1619.61,0.00018603,2]